[Event "Titled Tuesday Blitz August 16 Early 2022"]
[White "Terry, Renato"]
[Black "Kezin, Roman"]
[WhiteFideId "3803457"]
[BlackFideId "24124621"]
[WhiteElo "2577"]
[BlackElo "2551"]
[Result "1-0"]
[Round "06"]
[TimeControl "180+1"]
[Date "2022.08.16"]
[WhiteClock "0:00:05"]
[BlackClock "0:00:01"]

1. d4 {[%clk 0:03:00]}  Nc6 {[%clk 0:03:00]} 2. Nf3 {[%clk 0:03:00]}  d5 {[%clk 0:02:59]} 3. Bf4 {[%clk 0:03:00]}  Bf5 {[%clk 0:02:56]} 4. e3 {[%clk 0:03:00]}  e6 {[%clk 0:02:48]} 5. Bd3 {[%clk 0:02:59]}  Bg6 {[%clk 0:02:47]} 6. O-O {[%clk 0:02:56]}  Bd6 {[%clk 0:02:47]} 7. Bg5 {[%clk 0:02:50]}  f6 {[%clk 0:02:43]} 8. Bh4 {[%clk 0:02:50]}  Nge7 {[%clk 0:02:35]} 9. c4 {[%clk 0:02:47]}  Nf5 {[%clk 0:02:26]} 10. Nc3 {[%clk 0:02:40]}  Nxh4 {[%clk 0:02:04]} 11. Nxh4 {[%clk 0:02:40]}  Bxd3 {[%clk 0:02:05]} 12. Qxd3 {[%clk 0:02:40]}  dxc4 {[%clk 0:01:48]} 13. Qxc4 {[%clk 0:02:40]}  Qd7 {[%clk 0:01:48]} 14. Nf3 {[%clk 0:02:33]}  O-O-O {[%clk 0:01:44]} 15. Rac1 {[%clk 0:02:25]}  Kb8 {[%clk 0:01:41]} 16. Ne4 {[%clk 0:02:20]}  Rhe8 {[%clk 0:01:26]} 17. Rfd1 {[%clk 0:02:03]}  Bf8 {[%clk 0:01:16]} 18. Nc3 {[%clk 0:01:42]}  Nb4 {[%clk 0:01:01]} 19. a3 {[%clk 0:01:41]}  Nd5 {[%clk 0:01:00]} 20. Ne4 {[%clk 0:01:40]}  Nb6 {[%clk 0:00:56]} 21. Qc2 {[%clk 0:01:38]}  c6 {[%clk 0:00:51]} 22. Nc5 {[%clk 0:01:33]}  Qd5 {[%clk 0:00:49]} 23. a4 {[%clk 0:01:20]}  Nd7 {[%clk 0:00:35]} 24. Ne4 {[%clk 0:01:14]}  Qa5 {[%clk 0:00:28]} 25. Nfd2 {[%clk 0:01:11]}  Nb6 {[%clk 0:00:26]} 26. b3 {[%clk 0:01:07]}  Ba3 {[%clk 0:00:27]} 27. Rb1 {[%clk 0:01:06]}  Bb4 {[%clk 0:00:27]} 28. Nc4 {[%clk 0:01:07]}  Qd5 {[%clk 0:00:27]} 29. Ng3 {[%clk 0:00:53]}  h5 {[%clk 0:00:19]} 30. Ne2 {[%clk 0:00:45]}  g5 {[%clk 0:00:17]} 31. Rdc1 {[%clk 0:00:30]}  h4 {[%clk 0:00:15]} 32. h3 {[%clk 0:00:29]}  Qf5 {[%clk 0:00:15]} 33. Kf1 {[%clk 0:00:15]}  Qxc2 {[%clk 0:00:13]} 34. Rxc2 {[%clk 0:00:16]}  Nd5 {[%clk 0:00:09]} 35. Nb2 {[%clk 0:00:15]}  Bf8 {[%clk 0:00:08]} 36. Nd3 {[%clk 0:00:15]}  Nb4 {[%clk 0:00:08]} 37. Nxb4 {[%clk 0:00:15]}  Bxb4 {[%clk 0:00:09]} 38. Rc4 {[%clk 0:00:15]}  a5 {[%clk 0:00:10]} 39. Rd1 {[%clk 0:00:13]}  Kc7 {[%clk 0:00:09]} 40. Rcc1 {[%clk 0:00:13]}  Ba3 {[%clk 0:00:09]} 41. Ra1 {[%clk 0:00:13]}  Bb4 {[%clk 0:00:10]} 42. Ng1 {[%clk 0:00:13]}  Kd6 {[%clk 0:00:08]} 43. Nf3 {[%clk 0:00:13]}  Ke7 {[%clk 0:00:09]} 44. Ke2 {[%clk 0:00:13]}  Kf7 {[%clk 0:00:09]} 45. Rac1 {[%clk 0:00:14]}  Kg6 {[%clk 0:00:10]} 46. Rg1 {[%clk 0:00:11]}  Rd5 {[%clk 0:00:09]} 47. g3 {[%clk 0:00:10]}  hxg3 {[%clk 0:00:10]} 48. Rxg3 {[%clk 0:00:11]}  Kf7 {[%clk 0:00:08]} 49. h4 {[%clk 0:00:11]}  gxh4 {[%clk 0:00:08]} 50. Nxh4 {[%clk 0:00:12]}  Rh8 {[%clk 0:00:08]} 51. Nf3 {[%clk 0:00:11]}  Bf8 {[%clk 0:00:08]} 52. Rcg1 {[%clk 0:00:11]}  Rdh5 {[%clk 0:00:08]} 53. Kd3 {[%clk 0:00:06]}  Rh1 {[%clk 0:00:08]} 54. Ke4 {[%clk 0:00:04]}  Rxg1 {[%clk 0:00:08]} 55. Rxg1 {[%clk 0:00:05]}  Rh5 {[%clk 0:00:08]} 56. Kd3 {[%clk 0:00:05]}  Bb4 {[%clk 0:00:05]} 57. Ke2 {[%clk 0:00:05]}  Rh8 {[%clk 0:00:05]} 58. Rc1 {[%clk 0:00:04]}  Rh5 {[%clk 0:00:03]} 59. Rg1 {[%clk 0:00:04]}  Rh6 {[%clk 0:00:03]} 60. Rf1 {[%clk 0:00:04]}  Rh5 {[%clk 0:00:04]} 61. Rb1 {[%clk 0:00:04]}  Rh6 {[%clk 0:00:03]} 62. Rc1 {[%clk 0:00:05]}  Rh5 {[%clk 0:00:04]} 63. e4 {[%clk 0:00:05]}  Rh6 {[%clk 0:00:04]} 64. Rd1 {[%clk 0:00:05]}  Rh8 {[%clk 0:00:02]} 65. Rg1 {[%clk 0:00:05]}  Rh7 {[%clk 0:00:02]} 66. e5 {[%clk 0:00:05]}  Rh8 {[%clk 0:00:02]} 67. Rg4 {[%clk 0:00:05]}  f5 {[%clk 0:00:01]} 68. Ng5+ {[%clk 0:00:04]}  Ke7 {[%clk 0:00:01]} 69. Rg2 {[%clk 0:00:05]}  Rg8 {[%clk 0:00:02]} 70. f4 {[%clk 0:00:05]}  Rd8 {[%clk 0:00:01]} 71. Nf3 {[%clk 0:00:05]} 1-0


[Site "https://www.chess.com"]

[Event "Titled Tuesday Blitz August 16 Early 2022"]
[White "Tifferet, Shaked"]
[Black "Zheenbekov, Nurgazy"]
[WhiteFideId "2811529"]
[BlackFideId "13800485"]
[WhiteElo "2214"]
[BlackElo "2075"]
[Result "1-0"]
[Round "06"]
[TimeControl "180+2"]
[Date "2022.08.18"]
[WhiteClock "0:00:00"]
[BlackClock "0:00:00"]

1. e4 {[%clk 0:00:00]}  e5 {[%clk 0:00:00]} 2. Bc4 {[%clk 0:00:00]}  Nf6 {[%clk 0:00:00]} 3. d3 {[%clk 0:00:00]}  Nc6 {[%clk 0:00:00]} 4. Nc3 {[%clk 0:00:00]}  Bc5 {[%clk 0:00:00]} 5. a3 {[%clk 0:00:00]}  h6 {[%clk 0:00:00]} 6. Be3 {[%clk 0:00:00]}  d6 {[%clk 0:00:00]} 7. h3 {[%clk 0:00:00]}  O-O {[%clk 0:00:00]} 8. Nf3 {[%clk 0:00:00]}  Nd4 {[%clk 0:00:00]} 9. Bxd4 {[%clk 0:00:00]}  exd4 {[%clk 0:00:00]} 10. Ne2 {[%clk 0:00:00]}  d5 {[%clk 0:00:00]} 11. exd5 {[%clk 0:00:00]}  Nxd5 {[%clk 0:00:00]} 12. Qd2 {[%clk 0:00:00]}  Re8 {[%clk 0:00:00]} 13. O-O {[%clk 0:00:00]}  Nf6 {[%clk 0:00:00]} 14. Ng3 {[%clk 0:00:00]}  Bd6 {[%clk 0:00:00]} 15. Rae1 {[%clk 0:00:00]}  c5 {[%clk 0:00:00]} 16. Rxe8+ {[%clk 0:00:00]}  Qxe8 {[%clk 0:00:00]} 17. Re1 {[%clk 0:00:00]}  Qd8 {[%clk 0:00:00]} 18. c3 {[%clk 0:00:00]}  dxc3 {[%clk 0:00:00]} 19. bxc3 {[%clk 0:00:00]}  Bd7 {[%clk 0:00:00]} 20. Qa2 {[%clk 0:00:00]}  Qf8 {[%clk 0:00:00]} 21. Nd2 {[%clk 0:00:00]}  Re8 {[%clk 0:00:00]} 22. Nde4 {[%clk 0:00:00]}  Be7 {[%clk 0:00:00]} 23. Re3 {[%clk 0:00:00]}  b5 {[%clk 0:00:00]} 24. Bb3 {[%clk 0:00:00]}  a5 {[%clk 0:00:00]} 25. Qe2 {[%clk 0:00:00]}  Nxe4 {[%clk 0:00:00]} 26. Nxe4 {[%clk 0:00:00]}  a4 {[%clk 0:00:00]} 27. Bd5 {[%clk 0:00:00]}  b4 {[%clk 0:00:00]} 28. cxb4 {[%clk 0:00:00]}  cxb4 {[%clk 0:00:00]} 29. Rf3 {[%clk 0:00:00]}  Be6 {[%clk 0:00:00]} 30. Bxe6 {[%clk 0:00:00]} 1-0


[Site "https://www.chess.com"]

[Event "Titled Tuesday Blitz August 16 Early 2022"]
[White "Vachylia, Andrii"]
[Black "Grandelius, Nils"]
[WhiteFideId "14137224"]
[BlackFideId "1710400"]
[WhiteElo "2318"]
[BlackElo "2617"]
[Result "1-0"]
[Round "06"]
[TimeControl "180+1"]
[Date "2022.08.16"]
[WhiteClock "0:00:35"]
[BlackClock "0:00:17"]

1. e4 {[%clk 0:02:57]}  c5 {[%clk 0:02:59]} 2. Nf3 {[%clk 0:02:56]}  e6 {[%clk 0:02:57]} 3. d4 {[%clk 0:02:56]}  cxd4 {[%clk 0:02:58]} 4. Nxd4 {[%clk 0:02:57]}  Nc6 {[%clk 0:02:55]} 5. c4 {[%clk 0:02:51]}  Nf6 {[%clk 0:02:53]} 6. Nxc6 {[%clk 0:02:49]}  bxc6 {[%clk 0:02:51]} 7. Bd3 {[%clk 0:02:48]}  e5 {[%clk 0:02:46]} 8. O-O {[%clk 0:02:47]}  Bc5 {[%clk 0:02:46]} 9. Qe2 {[%clk 0:02:46]}  O-O {[%clk 0:02:24]} 10. Kh1 {[%clk 0:02:40]}  Re8 {[%clk 0:02:16]} 11. Nc3 {[%clk 0:02:35]}  Bb7 {[%clk 0:02:08]} 12. f4 {[%clk 0:02:06]}  Bd4 {[%clk 0:01:53]} 13. f5 {[%clk 0:01:47]}  h6 {[%clk 0:01:25]} 14. Bd2 {[%clk 0:01:40]}  d5 {[%clk 0:01:24]} 15. cxd5 {[%clk 0:01:39]}  cxd5 {[%clk 0:01:25]} 16. exd5 {[%clk 0:01:40]}  e4 {[%clk 0:01:17]} 17. Bc4 {[%clk 0:01:38]}  Nxd5 {[%clk 0:01:09]} 18. Rad1 {[%clk 0:01:19]}  Bxc3 {[%clk 0:00:46]} 19. Bxc3 {[%clk 0:01:05]}  Nxc3 {[%clk 0:00:46]} 20. Bxf7+ {[%clk 0:01:05]}  Kxf7 {[%clk 0:00:24]} 21. Qh5+ {[%clk 0:01:04]}  Kf8 {[%clk 0:00:20]} 22. Rxd8 {[%clk 0:01:04]}  Raxd8 {[%clk 0:00:20]} 23. f6 {[%clk 0:00:47]}  Bd5 {[%clk 0:00:16]} 24. bxc3 {[%clk 0:00:45]}  e3 {[%clk 0:00:16]} 25. Qg6 {[%clk 0:00:37]}  gxf6 {[%clk 0:00:16]} 26. Rxf6+ {[%clk 0:00:35]}  Ke7 {[%clk 0:00:17]} 27. Qg7+ {[%clk 0:00:35]} 1-0


[Site "https://www.chess.com"]

[Event "Titled Tuesday Blitz August 16 Early 2022"]
[White "Vlassov, Nikolai"]
[Black "Harsh Suresh"]
[WhiteFideId "4103360"]
[BlackFideId "45018464"]
[WhiteElo "2324"]
[BlackElo "2070"]
[Result "1/2-1/2"]
[Round "06"]
[TimeControl "180+1"]
[Date "2022.08.16"]
[WhiteClock "0:00:24"]
[BlackClock "0:00:07"]

1. e4 {[%clk 0:03:00]}  c6 {[%clk 0:02:59]} 2. d4 {[%clk 0:03:00]}  d5 {[%clk 0:02:59]} 3. e5 {[%clk 0:03:01]}  Bf5 {[%clk 0:02:59]} 4. Nc3 {[%clk 0:03:02]}  e6 {[%clk 0:02:56]} 5. g4 {[%clk 0:03:02]}  Bg6 {[%clk 0:02:56]} 6. Nge2 {[%clk 0:03:02]}  c5 {[%clk 0:02:55]} 7. Be3 {[%clk 0:03:02]}  Nc6 {[%clk 0:02:52]} 8. dxc5 {[%clk 0:03:02]}  Nxe5 {[%clk 0:02:38]} 9. Nf4 {[%clk 0:03:02]}  Qa5 {[%clk 0:02:25]} 10. Qe2 {[%clk 0:03:00]}  O-O-O {[%clk 0:02:12]} 11. O-O-O {[%clk 0:02:45]}  Nc6 {[%clk 0:02:08]} 12. Qb5 {[%clk 0:02:20]}  Qxb5 {[%clk 0:02:00]} 13. Bxb5 {[%clk 0:02:19]}  Nge7 {[%clk 0:01:44]} 14. h4 {[%clk 0:02:18]}  h6 {[%clk 0:01:27]} 15. Nxg6 {[%clk 0:02:15]}  Nxg6 {[%clk 0:01:27]} 16. f4 {[%clk 0:02:08]}  d4 {[%clk 0:01:18]} 17. Bxc6 {[%clk 0:02:07]}  bxc6 {[%clk 0:01:14]} 18. Rxd4 {[%clk 0:01:58]}  Rxd4 {[%clk 0:00:53]} 19. Bxd4 {[%clk 0:01:58]}  h5 {[%clk 0:00:54]} 20. f5 {[%clk 0:01:54]}  Nf4 {[%clk 0:00:32]} 21. Rf1 {[%clk 0:01:46]}  Nd5 {[%clk 0:00:32]} 22. fxe6 {[%clk 0:01:43]}  fxe6 {[%clk 0:00:33]} 23. gxh5 {[%clk 0:01:42]}  Be7 {[%clk 0:00:31]} 24. Nxd5 {[%clk 0:01:32]}  exd5 {[%clk 0:00:28]} 25. Bxg7 {[%clk 0:01:13]}  Rxh5 {[%clk 0:00:27]} 26. Rf7 {[%clk 0:01:12]}  Bxc5 {[%clk 0:00:20]} 27. Bf6 {[%clk 0:01:07]}  Rf5 {[%clk 0:00:20]} 28. c3 {[%clk 0:01:03]}  d4 {[%clk 0:00:17]} 29. cxd4 {[%clk 0:01:01]}  Bxd4 {[%clk 0:00:17]} 30. Rf8+ {[%clk 0:01:00]}  Kb7 {[%clk 0:00:14]} 31. Be7 {[%clk 0:00:58]}  Re5 {[%clk 0:00:15]} 32. Rf7 {[%clk 0:00:57]}  Kb6 {[%clk 0:00:14]} 33. b3 {[%clk 0:00:53]}  Re2 {[%clk 0:00:13]} 34. a4 {[%clk 0:00:51]}  a5 {[%clk 0:00:13]} 35. h5 {[%clk 0:00:43]}  Rh2 {[%clk 0:00:11]} 36. Rf5 {[%clk 0:00:43]}  Rh3 {[%clk 0:00:10]} 37. Kc2 {[%clk 0:00:38]}  Rc3+ {[%clk 0:00:10]} 38. Kd2 {[%clk 0:00:37]}  Rxb3 {[%clk 0:00:10]} 39. Bd8+ {[%clk 0:00:36]}  Kb7 {[%clk 0:00:10]} 40. Rxa5 {[%clk 0:00:35]}  Bc3+ {[%clk 0:00:09]} 41. Kc2 {[%clk 0:00:35]}  Bxa5 {[%clk 0:00:09]} 42. Kxb3 {[%clk 0:00:22]}  Bxd8 {[%clk 0:00:09]} 43. Kc4 {[%clk 0:00:22]}  Kb6 {[%clk 0:00:06]} 44. h6 {[%clk 0:00:22]}  Bf6 {[%clk 0:00:06]} 45. h7 {[%clk 0:00:22]}  Bh8 {[%clk 0:00:04]} 46. a5+ {[%clk 0:00:21]}  Kxa5 {[%clk 0:00:03]} 47. Kc5 {[%clk 0:00:22]}  Ka4 {[%clk 0:00:03]} 48. Kxc6 {[%clk 0:00:22]}  Kb3 {[%clk 0:00:04]} 49. Kd5 {[%clk 0:00:23]}  Kc3 {[%clk 0:00:05]} 50. Ke6 {[%clk 0:00:23]}  Kc4 {[%clk 0:00:05]} 51. Kf7 {[%clk 0:00:24]}  Kd5 {[%clk 0:00:05]} 52. Kg8 {[%clk 0:00:24]}  Ke6 {[%clk 0:00:06]} 53. Kxh8 {[%clk 0:00:24]}  Kf7 {[%clk 0:00:07]} 1/2-1/2


[Site "https://www.chess.com"]

[Event "Titled Tuesday Blitz August 16 Early 2022"]
[White "Vrbljanac, Aleksandar"]
[Black "Silva, Kevin Ranidu"]
[WhiteFideId "932817"]
[BlackFideId "9935258"]
[WhiteElo "2280"]
[BlackElo "1765"]
[Result "1-0"]
[Round "06"]
[TimeControl "180+2"]
[Date "2022.08.18"]
[WhiteClock "0:00:00"]
[BlackClock "0:00:00"]

1. e4 {[%clk 0:00:00]}  e5 {[%clk 0:00:00]} 2. Nf3 {[%clk 0:00:00]}  Nc6 {[%clk 0:00:00]} 3. Bc4 {[%clk 0:00:00]}  Nf6 {[%clk 0:00:00]} 4. d3 {[%clk 0:00:00]}  Be7 {[%clk 0:00:00]} 5. O-O {[%clk 0:00:00]}  O-O {[%clk 0:00:00]} 6. a4 {[%clk 0:00:00]}  d5 {[%clk 0:00:00]} 7. exd5 {[%clk 0:00:00]}  Nxd5 {[%clk 0:00:00]} 8. Re1 {[%clk 0:00:00]}  Bg4 {[%clk 0:00:00]} 9. h3 {[%clk 0:00:00]}  Bh5 {[%clk 0:00:00]} 10. a5 {[%clk 0:00:00]}  a6 {[%clk 0:00:00]} 11. Nbd2 {[%clk 0:00:00]}  Bg6 {[%clk 0:00:00]} 12. Nxe5 {[%clk 0:00:00]}  Nxe5 {[%clk 0:00:00]} 13. Rxe5 {[%clk 0:00:00]}  c6 {[%clk 0:00:00]} 14. Qf3 {[%clk 0:00:00]}  Bd6 {[%clk 0:00:00]} 15. Re1 {[%clk 0:00:00]}  Nb4 {[%clk 0:00:00]} 16. Bb3 {[%clk 0:00:00]}  Qd7 {[%clk 0:00:00]} 17. Ne4 {[%clk 0:00:00]}  Rfe8 {[%clk 0:00:00]} 18. Bd2 {[%clk 0:00:00]}  Nd5 {[%clk 0:00:00]} 19. Re2 {[%clk 0:00:00]}  Nc7 {[%clk 0:00:00]} 20. Rae1 {[%clk 0:00:00]}  Ne6 {[%clk 0:00:00]} 21. Bc3 {[%clk 0:00:00]}  Kh8 {[%clk 0:00:00]} 22. Nf6 {[%clk 0:00:00]}  Qc7 {[%clk 0:00:00]} 23. Nxe8 {[%clk 0:00:00]}  Rxe8 {[%clk 0:00:00]} 24. Bxe6 {[%clk 0:00:00]}  fxe6 {[%clk 0:00:00]} 25. Rxe6 {[%clk 0:00:00]}  Rf8 {[%clk 0:00:00]} 26. Qe3 {[%clk 0:00:00]}  c5 {[%clk 0:00:00]} 27. g3 {[%clk 0:00:00]}  c4 {[%clk 0:00:00]} 28. Be5 {[%clk 0:00:00]}  Bxe5 {[%clk 0:00:00]} 29. Qxe5 {[%clk 0:00:00]}  Qf7 {[%clk 0:00:00]} 30. Qf4 {[%clk 0:00:00]}  Qxf4 {[%clk 0:00:00]} 31. gxf4 {[%clk 0:00:00]}  cxd3 {[%clk 0:00:00]} 32. cxd3 {[%clk 0:00:00]}  Kg8 {[%clk 0:00:00]} 33. d4 {[%clk 0:00:00]}  Rxf4 {[%clk 0:00:00]} 34. Re8+ {[%clk 0:00:00]}  Bxe8 {[%clk 0:00:00]} 35. Rxe8+ {[%clk 0:00:00]}  Kf7 {[%clk 0:00:00]} 36. Rd8 {[%clk 0:00:00]}  Ke7 {[%clk 0:00:00]} 37. Rd5 {[%clk 0:00:00]}  Rf3 {[%clk 0:00:00]} 38. Re5+ {[%clk 0:00:00]}  Kd6 {[%clk 0:00:00]} 39. Re3 {[%clk 0:00:00]}  Rxe3 {[%clk 0:00:00]} 40. fxe3 {[%clk 0:00:00]}  Kd5 {[%clk 0:00:00]} 41. Kf2 {[%clk 0:00:00]}  g5 {[%clk 0:00:00]} 42. Kf3 {[%clk 0:00:00]}  h6 {[%clk 0:00:00]} 43. b3 {[%clk 0:00:00]}  Kc6 {[%clk 0:00:00]} 44. Ke4 {[%clk 0:00:00]}  b6 {[%clk 0:00:00]} 45. axb6 {[%clk 0:00:00]}  Kxb6 {[%clk 0:00:00]} 46. d5 {[%clk 0:00:00]}  Kc7 {[%clk 0:00:00]} 47. Ke5 {[%clk 0:00:00]}  Kd7 {[%clk 0:00:00]} 48. e4 {[%clk 0:00:00]}  Ke7 {[%clk 0:00:00]} 49. Kf5 {[%clk 0:00:00]}  Kd6 {[%clk 0:00:00]} 50. Kf6 {[%clk 0:00:00]} 1-0


[Site "https://www.chess.com"]

[Event "Titled Tuesday Blitz August 16 Early 2022"]
[White "Vysochin, Spartak"]
[Black "Jiganchine, Roman"]
[WhiteFideId "14103516"]
[BlackFideId "2603667"]
[WhiteElo "2512"]
[BlackElo "2205"]
[Result "1/2-1/2"]
[Round "06"]
[TimeControl "180+2"]
[Date "2022.08.18"]
[WhiteClock "0:00:00"]
[BlackClock "0:00:00"]

1. d4 {[%clk 0:00:00]}  d5 {[%clk 0:00:00]} 2. Nf3 {[%clk 0:00:00]}  Nf6 {[%clk 0:00:00]} 3. Bf4 {[%clk 0:00:00]}  e6 {[%clk 0:00:00]} 4. e3 {[%clk 0:00:00]}  c5 {[%clk 0:00:00]} 5. c4 {[%clk 0:00:00]}  Nc6 {[%clk 0:00:00]} 6. dxc5 {[%clk 0:00:00]}  Bxc5 {[%clk 0:00:00]} 7. Nc3 {[%clk 0:00:00]}  d4 {[%clk 0:00:00]} 8. exd4 {[%clk 0:00:00]}  Nxd4 {[%clk 0:00:00]} 9. Nxd4 {[%clk 0:00:00]}  Bxd4 {[%clk 0:00:00]} 10. Qc2 {[%clk 0:00:00]}  O-O {[%clk 0:00:00]} 11. Bd3 {[%clk 0:00:00]}  e5 {[%clk 0:00:00]} 12. Bg5 {[%clk 0:00:00]}  h6 {[%clk 0:00:00]} 13. Bh4 {[%clk 0:00:00]}  g5 {[%clk 0:00:00]} 14. Bg3 {[%clk 0:00:00]}  e4 {[%clk 0:00:00]} 15. Nxe4 {[%clk 0:00:00]}  Qa5+ {[%clk 0:00:00]} 16. Nd2 {[%clk 0:00:00]}  Re8+ {[%clk 0:00:00]} 17. Kd1 {[%clk 0:00:00]}  Bg4+ {[%clk 0:00:00]} 18. f3 {[%clk 0:00:00]}  Rad8 {[%clk 0:00:00]} 19. Nb3 {[%clk 0:00:00]}  Qb4 {[%clk 0:00:00]} 20. Nxd4 {[%clk 0:00:00]}  Rxd4 {[%clk 0:00:00]} 21. Bf2 {[%clk 0:00:00]}  Rxd3+ {[%clk 0:00:00]} 22. Qxd3 {[%clk 0:00:00]}  Qxb2 {[%clk 0:00:00]} 23. Bd4 {[%clk 0:00:00]}  Qxg2 {[%clk 0:00:00]} 24. Rg1 {[%clk 0:00:00]}  Bxf3+ {[%clk 0:00:00]} 25. Kc1 {[%clk 0:00:00]}  Qh3 {[%clk 0:00:00]} 26. Bxf6 {[%clk 0:00:00]}  Re6 {[%clk 0:00:00]} 27. Qd8+ {[%clk 0:00:00]}  Kh7 {[%clk 0:00:00]} 28. Qh8+ {[%clk 0:00:00]}  Kg6 {[%clk 0:00:00]} 29. Qg7+ {[%clk 0:00:00]}  Kf5 {[%clk 0:00:00]} 30. Qxf7 {[%clk 0:00:00]}  Rxf6 {[%clk 0:00:00]} 31. Qd7+ {[%clk 0:00:00]}  Re6 {[%clk 0:00:00]} 32. Qd3+ {[%clk 0:00:00]}  Re4 {[%clk 0:00:00]} 33. Qd5+ {[%clk 0:00:00]}  Re5 {[%clk 0:00:00]} 34. Qd3+ {[%clk 0:00:00]}  Re4 {[%clk 0:00:00]} 35. Qd5+ {[%clk 0:00:00]}  Re5 {[%clk 0:00:00]} 36. Qf7+ {[%clk 0:00:00]}  Ke4 {[%clk 0:00:00]} 37. Qd5+ {[%clk 0:00:00]}  Kf5 {[%clk 0:00:00]} 1/2-1/2


[Site "https://www.chess.com"]

[Event "Titled Tuesday Blitz August 16 Early 2022"]
[White "Yurovskykh, Oleksandr"]
[Black "Prydun, Andriy"]
[WhiteFideId "14134020"]
[BlackFideId "14145898"]
[WhiteElo "2292"]
[BlackElo "2163"]
[Result "1-0"]
[Round "06"]
[TimeControl "180+2"]
[Date "2022.08.18"]
[WhiteClock "0:00:00"]
[BlackClock "0:00:00"]

1. d4 {[%clk 0:00:00]}  c6 {[%clk 0:00:00]} 2. c3 {[%clk 0:00:00]}  g6 {[%clk 0:00:00]} 3. g3 {[%clk 0:00:00]}  Bg7 {[%clk 0:00:00]} 4. Bg2 {[%clk 0:00:00]}  h5 {[%clk 0:00:00]} 5. h4 {[%clk 0:00:00]}  d6 {[%clk 0:00:00]} 6. Nf3 {[%clk 0:00:00]}  Bg4 {[%clk 0:00:00]} 7. O-O {[%clk 0:00:00]}  Nd7 {[%clk 0:00:00]} 8. Nbd2 {[%clk 0:00:00]}  Qc7 {[%clk 0:00:00]} 9. Nh2 {[%clk 0:00:00]}  Be6 {[%clk 0:00:00]} 10. e4 {[%clk 0:00:00]}  d5 {[%clk 0:00:00]} 11. exd5 {[%clk 0:00:00]}  Bxd5 {[%clk 0:00:00]} 12. Bxd5 {[%clk 0:00:00]}  cxd5 {[%clk 0:00:00]} 13. Ndf3 {[%clk 0:00:00]}  Ngf6 {[%clk 0:00:00]} 14. Bf4 {[%clk 0:00:00]}  Qb6 {[%clk 0:00:00]} 15. Qb3 {[%clk 0:00:00]}  e6 {[%clk 0:00:00]} 16. Rfe1 {[%clk 0:00:00]}  Rc8 {[%clk 0:00:00]} 17. Nf1 {[%clk 0:00:00]}  Ne4 {[%clk 0:00:00]} 18. N1d2 {[%clk 0:00:00]}  Nxd2 {[%clk 0:00:00]} 19. Nxd2 {[%clk 0:00:00]}  O-O {[%clk 0:00:00]} 20. Re2 {[%clk 0:00:00]}  Qc6 {[%clk 0:00:00]} 21. Nf3 {[%clk 0:00:00]}  b5 {[%clk 0:00:00]} 22. Ne1 {[%clk 0:00:00]}  Qc4 {[%clk 0:00:00]} 23. Rd2 {[%clk 0:00:00]}  a5 {[%clk 0:00:00]} 24. Nd3 {[%clk 0:00:00]}  a4 {[%clk 0:00:00]} 25. Qd1 {[%clk 0:00:00]}  a3 {[%clk 0:00:00]} 26. bxa3 {[%clk 0:00:00]}  Qxc3 {[%clk 0:00:00]} 27. Rb1 {[%clk 0:00:00]}  Qxd4 {[%clk 0:00:00]} 28. Rxb5 {[%clk 0:00:00]}  Ra8 {[%clk 0:00:00]} 29. Bd6 {[%clk 0:00:00]}  Rfc8 {[%clk 0:00:00]} 30. Nc5 {[%clk 0:00:00]}  Rxc5 {[%clk 0:00:00]} 31. Rxd4 {[%clk 0:00:00]}  Rxb5 {[%clk 0:00:00]} 32. Rb4 {[%clk 0:00:00]}  Rba5 {[%clk 0:00:00]} 33. a4 {[%clk 0:00:00]}  Ne5 {[%clk 0:00:00]} 34. Bxe5 {[%clk 0:00:00]}  Bxe5 {[%clk 0:00:00]} 35. Qb3 {[%clk 0:00:00]}  Kg7 {[%clk 0:00:00]} 36. Kg2 {[%clk 0:00:00]}  Bf6 {[%clk 0:00:00]} 37. Rf4 {[%clk 0:00:00]}  Be5 {[%clk 0:00:00]} 38. Rb4 {[%clk 0:00:00]}  Bd6 {[%clk 0:00:00]} 39. Rb7 {[%clk 0:00:00]}  Rxa4 {[%clk 0:00:00]} 40. Qf3 {[%clk 0:00:00]}  Rf8 {[%clk 0:00:00]} 41. Qe2 {[%clk 0:00:00]}  Re4 {[%clk 0:00:00]} 42. Qb5 {[%clk 0:00:00]}  Be5 {[%clk 0:00:00]} 43. a4 {[%clk 0:00:00]}  Bd4 {[%clk 0:00:00]} 44. a5 {[%clk 0:00:00]}  Re5 {[%clk 0:00:00]} 45. a6 {[%clk 0:00:00]}  Rf5 {[%clk 0:00:00]} 46. f4 {[%clk 0:00:00]}  e5 {[%clk 0:00:00]} 47. Qxd5 {[%clk 0:00:00]}  exf4 {[%clk 0:00:00]} 48. Qxd4+ {[%clk 0:00:00]} 1-0


[Site "https://www.chess.com"]